bitfinex-derivatives/quotes_BNBF0:USTF0_20250511
["timestamp","ask_amount","ask_price","bid_price","bid_amount"]
[1746939884526,0.24366028,667.61,666.73,0.2999715]
[1746939884727,0.26085783,667.62,666.73,0.2999715]
[1746939885128,0.24365893,667.61,666.73,0.2999715]
[1746939885424,0.26085783,667.62,666.73,0.2999715]
[1746939885727,0.24365982,667.61,666.73,0.2999715]
[1746939886328,0.26082166,667.6,666.73,0.2999715]
[1746939886629,0.24365982,667.59,666.73,0.2999715]
[1746939889434,0.26082362,667.58,666.73,0.2999715]
[1746939889734,0.24365982,667.57,666.73,0.2999715]
[1746939890034,0.24365982,668.51,666.73,0.2999715]
[1746939890231,0.29918173,668.49,666.73,0.2999715]
[1746939890735,0.24365982,668.48,666.73,0.2999715]
[1746939891435,0.24365982,668.47,666.73,0.2999715]
[1746939891730,0.24365982,668.46,666.73,0.2999715]
[1746939892036,0.24365982,668.45,666.73,0.2999715]
[1746939892232,0.24365982,668.45,666.74,0.404]
[1746939892534,0.24365982,668.44,666.74,0.404]
[1746939892834,0.24365982,668.43,666.74,0.404]
[1746939893130,0.24365982,668.42,666.74,0.404]
[1746939893534,0.24365982,668.41,666.74,0.404]
[1746939893835,0.24365982,668.4,666.74,0.404]
[1746939894135,0.24365982,668.39,666.74,0.404]
[1746939894435,1.94388738,668.31,666.74,0.404]
[1746939894934,0.24365982,668.3,666.74,0.404]
[1746939895435,0.50450299,668.29,666.74,0.404]
[1746939895735,0.24365982,668.28,666.74,0.404]
[1746939896234,0.24365982,668.27,666.74,0.404]
[1746939896729,0.24365982,668.26,666.74,0.404]
[1746939896933,1.94388738,667.88,666.74,0.404]
[1746939897234,0.24365982,667.87,666.74,0.404]
[1746939897534,0.24365982,667.86,666.74,0.404]
[1746939897837,0.24365982,667.85,666.74,0.404]
[1746939898234,0.24365982,667.84,666.74,0.404]
[1746939899036,0.24365982,667.83,666.74,0.404]
[1746939899431,0.24365982,667.82,666.74,0.404]
[1746939899731,0.24365982,667.81,666.74,0.404]
[1746939900135,0.24365982,667.8,666.74,0.404]
[1746939900538,0.24365982,667.79,666.74,0.404]
[1746939900736,2.1875472,667.79,666.74,0.404]
[1746939901036,0.24365982,667.78,666.74,0.404]
[1746939901333,0.24365982,667.77,666.74,0.404]
[1746939901639,0.24365982,667.76,666.74,0.404]
[1746939902238,0.24365982,667.75,666.74,0.404]
[1746939902439,1.94388738,667.69,666.74,0.404]
[1746939903135,0.24365982,667.68,666.74,0.404]
[1746939903634,0.24365982,667.67,666.74,0.404]
[1746939904034,0.24365982,667.66,666.74,0.404]
[1746939904440,0.24365982,667.65,666.74,0.404]
[1746939904742,0.24365982,667.64,666.74,0.404]
[1746939904944,1.94388738,667.62,666.74,0.404]
[1746939905344,0.50466418,667.61,666.74,0.404]
[1746939905843,0.24376137,667.6,666.74,0.404]
[1746939906145,0.24376137,667.59,666.74,0.404]
[1746939906541,0.24376137,667.58,666.74,0.404]
[1746939906847,1.94388738,667.49,666.74,0.404]
[1746939907146,0.24376137,667.48,666.74,0.404]
[1746939907946,0.24376137,667.47,666.74,0.404]
[1746939908347,0.24376137,667.48,666.74,0.404]
[1746939909146,1.94388738,667.47,666.74,0.404]
[1746939909446,0.24376137,667.46,666.74,0.404]
[1746939910347,0.26089988,667.45,666.74,0.404]
[1746939910947,0.24376137,667.44,666.74,0.404]
[1746939912248,0.24376137,667.44,666.67,0.2999985]
[1746939913348,0.50462311,667.44,666.67,0.2999985]
[1746939913548,0.26086174,667.44,666.67,0.2999985]
[1746939913749,0.24376137,667.43,666.67,0.2999985]
[1746939915851,0.24376137,667.55,666.67,0.2999985]
[1746939919654,0.24376137,668.21,666.67,0.2999985]
[1746939920054,0.24376137,668.2,666.67,0.2999985]
[1746939920358,0.24376137,668.19,666.67,0.2999985]
[1746939920655,0.24376137,668.18,666.67,0.2999985]
[1746939921757,0.24376137,668.17,666.67,0.2999985]
[1746939922256,0.24376137,668.16,666.67,0.2999985]
[1746939922757,0.24376137,668.15,666.67,0.2999985]
[1746939923058,0.24376137,668.14,666.67,0.2999985]
[1746939923359,0.24376137,668.13,666.67,0.2999985]
[1746939924459,0.2993519,668.11,666.67,0.2999985]
[1746939924858,0.24376137,668.1,666.67,0.2999985]
[1746939925259,0.29936534,668.08,666.67,0.2999985]
[1746939925559,0.24376137,668.07,666.67,0.2999985]
[1746939925760,0.29937878,668.05,666.67,0.2999985]
[1746939926261,0.24376137,668.04,666.67,0.2999985]
[1746939926558,0.29937878,668.05,666.67,0.2999985]
[1746939926559,0.24376137,668.03,666.67,0.2999985]
[1746939926858,0.24376137,668.02,666.67,0.2999985]
[1746939927258,0.24376137,668.01,666.67,0.2999985]
[1746939927560,0.24376137,668.0,666.67,0.2999985]
[1746939927860,0.24376137,668.04,666.67,0.2999985]
[1746939928360,0.26081873,668.03,666.67,0.2999985]
[1746939928561,0.24376137,668.02,666.67,0.2999985]
[1746939930257,0.24376137,668.01,666.67,0.2999985]
[1746939930660,0.24376137,668.02,666.67,0.2999985]
[1746939930956,0.24376137,668.01,666.67,0.2999985]
[1746939931360,0.26081091,668.0,666.67,0.2999985]
[1746939931662,0.50457228,668.0,666.67,0.2999985]
[1746939931961,0.29941016,667.98,666.67,0.2999985]
[1746939932462,0.24376137,667.97,666.67,0.2999985]
[1746939932658,0.29941016,667.98,666.67,0.2999985]
[1746939933064,0.24364551,667.97,666.67,0.2999985]
[1746939933262,0.2994236,667.95,666.67,0.2999985]
[1746939933562,1.94388738,667.88,666.67,0.2999985]
[1746939933955,0.2436459,667.87,666.67,0.2999985]
[1746939934463,0.2436459,667.86,666.67,0.2999985]
[1746939934863,0.2436459,667.85,666.67,0.2999985]
[1746939935259,0.2436459,667.84,666.67,0.2999985]
[1746939935464,0.29947741,667.83,666.67,0.2999985]
[1746939935667,0.54312331,667.83,666.67,0.2999985]
[1746939936058,0.2436459,667.82,666.67,0.2999985]
[1746939936359,0.2436459,667.81,666.67,0.2999985]
[1746939936664,0.2436459,667.8,666.67,0.2999985]
[1746939936964,0.2436459,667.79,666.67,0.2999985]
[1746939937361,0.29947741,667.83,666.67,0.2999985]
[1746939937665,0.24364701,667.82,666.67,0.2999985]
[1746939938267,0.29949086,667.8,666.67,0.2999985]
[1746939938761,0.24364701,667.79,666.67,0.2999985]
[1746939938966,0.29949983,667.78,666.67,0.2999985]
[1746939939265,0.24364701,667.77,666.67,0.2999985]
[1746939939766,0.2995088,667.76,666.67,0.2999985]
[1746939940067,0.24364701,667.75,666.67,0.2999985]
[1746939940363,0.50448334,667.75,666.67,0.2999985]
[1746939940567,0.29951777,667.74,666.67,0.2999985]
[1746939940867,0.24364701,667.73,666.68,0.55]
[1746939941367,0.29951777,667.74,666.68,0.55]
[1746939941770,0.24364662,667.73,666.68,0.55]
[1746939941965,0.29951777,667.74,666.68,0.55]
[1746939942271,0.24364531,667.73,666.68,0.55]
[1746939943366,0.29952674,667.72,666.68,0.55]
[1746939943564,0.24364531,667.71,666.68,0.55]
[1746939944166,0.29953571,667.7,666.68,0.55]
[1746939944771,0.24364531,667.69,666.68,0.55]
[1746939944966,0.29954469,667.68,666.68,0.55]
[1746939945166,0.24364531,667.67,666.68,0.55]
[1746939945371,0.29955366,667.66,666.68,0.55]
[1746939945871,0.24364531,667.65,666.68,0.55]
[1746939946272,0.29956263,667.64,666.68,0.55]
[1746939946467,0.5604058,667.64,666.68,0.55]
[1746939946665,0.24364531,667.63,666.68,0.55]
[1746939947067,0.29957161,667.62,666.68,0.55]
[1746939947271,0.24364531,667.61,666.68,0.55]
[1746939949371,0.50449239,667.61,666.68,0.55]
[1746939949671,0.24364531,667.6,666.68,0.55]
[1746939952776,0.24364531,667.61,666.68,0.55]
[1746939953977,0.29957161,667.62,666.68,0.55]
[1746939954378,0.24361057,667.61,666.68,0.55]
[1746939964392,0.50445765,667.61,666.68,0.55]
[1746939964794,0.24361057,667.6,666.68,0.55]
[1746939967397,0.24361057,667.61,666.68,0.55]
[1746939991918,0.29957161,667.62,666.68,0.55]
[1746939992819,0.24359431,667.61,666.69,1.16882501]
[1746939993320,0.24359431,667.61,666.7,1.16882501]
[1746939993519,0.24359431,667.61,666.71,1.16882501]
[1746939994522,0.24359431,667.61,666.72,1.16882501]
[1746939995020,0.24359431,667.61,666.73,1.16882501]
[1746939995321,0.24359431,667.61,666.74,1.16882501]
[1746939995925,0.24359431,667.61,666.75,1.16882501]
[1746939996725,0.24359431,667.61,666.76,1.16882501]
[1746939997025,0.24359431,667.61,666.77,0.434]
[1746940018137,0.24359431,667.61,666.67,0.2999985]
[1746940020942,0.24359431,667.61,666.68,0.554]
[1746940036752,0.29957161,667.62,666.68,0.554]
[1746940037053,0.24361626,667.61,666.68,0.554]
[1746940050664,0.29957161,667.62,666.68,0.554]
[1746940050964,0.24362044,667.61,666.68,0.554]
[1746940053367,0.29957161,667.62,666.68,0.554]
[1746940053766,0.24362533,667.61,666.68,0.554]
[1746940054164,0.24362533,667.6,666.68,0.554]
[1746940054465,0.24362533,667.61,666.68,0.554]
[1746940054862,0.24362533,667.6,666.68,0.554]
[1746940055067,1.94388738,667.54,666.68,0.554]
[1746940055566,0.24362533,667.53,666.68,0.554]
[1746940058063,0.24362533,667.54,666.68,0.554]
[1746940060070,0.24362533,667.61,666.68,0.554]
[1746940062771,0.29957161,667.62,666.68,0.554]
[1746940063071,0.24365902,667.61,666.68,0.554]
[1746940064572,0.5045061,667.61,666.68,0.554]
[1746940065071,0.24365902,667.6,666.68,0.554]
[1746940066468,0.24365902,667.61,666.68,0.554]
[1746940066674,0.5045061,667.61,666.68,0.554]
[1746940067067,0.24365902,667.6,666.68,0.554]
[1746940067972,0.26084708,667.61,666.68,0.554]
[1746940068166,0.24365892,667.6,666.68,0.554]
[1746940072373,0.26084708,667.61,666.68,0.554]
[1746940072877,0.24365846,667.6,666.68,0.554]
[1746940075579,0.50450554,667.61,666.68,0.554]
[1746940075890,0.24365846,667.6,666.68,0.554]
[1746940080684,0.26084708,667.61,666.68,0.554]
[1746940080985,0.24360242,667.6,666.68,0.554]
[1746940081485,0.29957161,667.62,666.68,0.554]
[1746940081486,0.5044495,667.61,666.68,0.554]
[1746940081887,0.24360242,667.6,666.68,0.554]
[1746940082685,0.24360242,667.61,666.69,1.1677884]
[1746940082985,0.29957161,667.62,666.69,1.1677884]
[1746940083282,0.24360047,667.61,666.67,0.2999985]
[1746940083588,0.24360047,667.61,666.68,1.16743279]
[1746940084081,0.24360047,667.61,666.67,0.2999985]
[1746940086889,0.24360047,667.61,666.68,0.349]
[1746940087391,0.50444853,667.61,666.68,0.349]
[1746940087890,0.24360047,667.6,666.68,0.349]
[1746940088190,0.26084806,667.61,666.68,0.349]
[1746940088491,0.24361085,667.6,666.68,0.349]
[1746940090691,0.50445891,667.61,666.68,0.349]
[1746940090990,0.24361085,667.59,666.68,0.349]
[1746940091189,0.26084806,667.61,666.68,0.349]
[1746940091490,0.24361711,667.6,666.68,0.349]
[1746940093891,0.50446517,667.61,666.68,0.349]
[1746940094092,0.24361711,667.6,666.68,0.349]
[1746940095504,0.26084806,667.61,666.68,0.349]
[1746940095903,0.24361509,667.6,666.68,0.349]
[1746940096605,0.24361509,667.59,666.68,0.349]
[1746940096905,0.24361509,667.58,666.68,0.349]
[1746940097305,1.94388738,667.54,666.68,0.349]
[1746940097605,0.24361509,667.53,666.68,0.349]
[1746940098106,0.24361509,667.52,666.68,0.349]
[1746940098604,0.24361509,667.51,666.68,0.349]
[1746940099006,0.24361509,667.5,666.68,0.349]
[1746940099209,0.24361509,667.53,666.68,0.349]
[1746940099410,1.94388738,667.51,666.68,0.349]
[1746940099809,0.24361509,667.5,666.68,0.349]
[1746940101210,0.24361509,667.49,666.68,0.349]
[1746940103209,1.94388738,667.5,666.68,0.349]
[1746940103710,0.24364177,667.49,666.68,0.349]
[1746940105811,0.24364177,667.6,666.68,0.349]
[1746940108613,0.50448983,667.61,666.68,0.349]
[1746940109011,0.24364177,667.6,666.68,0.349]
[1746940114419,0.24364177,667.6,666.69,1.16651808]
[1746940114716,0.24364177,667.61,666.69,1.16651808]
[1746940114913,0.24364177,667.59,666.69,1.16651808]
[1746940115319,0.24364177,667.61,666.67,0.2999985]
[1746940117624,0.24364177,667.61,666.68,0.344]
[1746940119626,0.24364177,667.61,666.69,1.16582715]
[1746940120226,0.24364177,667.61,666.68,0.344]
[1746940120926,0.29957161,667.62,666.68,0.344]
[1746940121229,0.29957161,667.62,666.69,1.16549088]
[1746940121423,0.24358759,667.61,666.69,1.16549088]
[1746940121727,0.24358759,667.61,666.7,1.16549088]
[1746940122026,0.29957161,667.62,666.7,1.16549088]
[1746940122327,0.2435884,667.61,666.7,1.16549088]
[1746940122627,0.2435884,667.61,666.71,1.16549088]
[1746940123126,0.2435884,667.61,666.72,1.16549088]
[1746940123626,0.2435884,667.78,666.73,1.16549088]
[1746940124022,0.2435884,668.07,666.73,1.16549088]
[1746940124327,0.2993743,668.06,666.74,1.16549088]
[1746940124628,0.2993743,668.06,666.68,0.344]
[1746940124629,0.2435884,668.05,666.75,1.16549088]
[1746940124823,0.2435884,668.05,666.76,1.16549088]
[1746940125024,0.2435884,668.04,666.76,1.16549088]
[1746940125224,0.54297167,668.04,666.76,1.16549088]
[1746940125427,0.54297167,668.04,666.68,0.344]
[1746940125428,0.54297615,668.03,666.68,0.344]
[1746940125622,0.29939223,668.02,666.68,0.344]
[1746940125828,0.54298063,668.02,666.69,1.16413996]
[1746940126028,0.2435884,668.01,666.69,1.16413996]
[1746940126228,0.54298511,668.01,666.7,1.16413996]
[1746940126528,0.50435436,668.0,666.71,1.16413996]
[1746940126828,0.2435884,667.99,666.72,1.16413996]
[1746940127326,0.2435884,667.98,666.73,1.16413996]
[1746940127727,0.2435884,667.97,666.73,1.16413996]
[1746940127922,0.2435884,667.97,666.74,1.16413996]
[1746940128129,0.2435884,667.96,666.74,1.16413996]
[1746940128328,0.2435884,667.96,666.68,0.60476596]
[1746940128622,0.2435884,667.95,666.69,1.16359484]
[1746940128827,0.2435884,667.94,666.69,1.16359484]
[1746940129127,0.2435884,667.94,666.7,1.16359484]
[1746940129327,0.2435884,667.93,666.71,1.16359484]
[1746940129629,0.50435436,667.93,666.71,1.16359484]
[1746940129828,0.2435884,667.92,666.71,1.16359484]
[1746940130030,0.2435884,667.91,666.72,1.16359484]
[1746940130430,0.2435884,667.9,666.72,1.16359484]
[1746940130730,0.2435884,667.9,666.73,1.16359484]
[1746940130928,0.2435884,667.89,666.73,1.16359484]
[1746940131330,0.2435884,667.89,666.74,1.16359484]
[1746940131528,0.2435884,667.92,666.74,1.16359484]
[1746940131725,0.2435884,667.92,666.69,0.26076596]
[1746940132130,0.2435884,667.92,666.7,1.16324941]
[1746940132532,0.26076596,667.91,666.7,1.16324941]
[1746940132830,0.2435884,667.9,666.71,1.68124941]
[1746940133131,0.2435884,667.9,666.72,1.16324941]
[1746940133829,0.2435884,667.9,666.73,1.16324941]
[1746940134234,0.2435884,667.9,666.71,0.518]
[1746940134934,0.2435884,667.89,666.71,0.518]
[1746940135441,0.50435534,667.88,666.71,0.518]
[1746940135635,0.2435884,667.87,666.71,0.518]
[1746940135939,0.2435884,667.86,666.71,0.518]
[1746940136237,0.2435884,667.85,666.71,0.518]
[1746940136635,0.2435884,667.84,666.71,0.518]
[1746940136941,1.94388738,667.77,666.71,0.518]
[1746940137341,0.2435884,667.76,666.71,0.518]
[1746940139136,0.2435884,667.97,666.71,0.518]
[1746940139541,0.26076792,667.96,666.71,0.518]
[1746940139741,0.50435632,667.96,666.71,0.518]
[1746940139941,0.2435884,667.95,666.71,0.518]
[1746940140237,0.2435884,667.94,666.71,0.518]
[1746940140542,0.2435884,667.93,666.71,0.518]
[1746940140940,0.2435884,667.92,666.71,0.518]
[1746940141243,0.2435884,667.91,666.71,0.518]
[1746940141538,0.26076499,667.91,666.71,0.518]
[1746940141843,0.26076499,667.91,666.72,1.16255708]
[1746940142042,0.24355682,667.9,666.72,1.46253308]
[1746940142242,0.24355682,667.9,666.73,1.16255708]
[1746940142538,0.24355682,667.9,666.74,1.16255708]
[1746940143043,0.24355682,667.9,666.75,1.16255708]
[1746940143244,0.29939671,668.01,666.75,1.16255708]
[1746940143445,0.29939671,668.01,666.76,0.299958]
[1746940143639,0.29939671,668.01,666.77,1.16255708]
[1746940143842,0.29939671,668.01,666.78,0.299949]
[1746940144343,0.29939671,668.01,666.79,1.16255708]
[1746940144539,0.24347503,668.0,666.8,1.46249709]
[1746940144840,0.24347503,668.0,666.81,1.16255708]
[1746940145044,0.24347503,668.0,666.82,0.29993101]
[1746940145445,0.29939671,668.01,666.83,1.16255708]
[1746940145646,0.29939671,668.01,666.84,0.29992202]
[1746940145947,0.24347959,668.0,666.84,0.29992202]
[1746940149348,0.29939671,668.01,666.84,0.29992202]
[1746940149548,0.24347652,668.0,666.84,0.29992202]
[1746940150541,0.26072982,667.99,666.84,0.29992202]
[1746940151050,0.24347652,667.98,666.84,0.29992202]
[1746940151448,0.24347652,667.97,666.84,0.29992202]
[1746940151949,0.24347652,667.98,666.84,0.29992202]
[1746940152346,0.24347652,667.97,666.84,0.29992202]
[1746940153151,0.24347652,667.96,666.84,0.29992202]
[1746940153654,0.24347652,667.95,666.84,0.29992202]
[1746940154150,0.24347652,667.94,666.84,0.29992202]
[1746940154553,0.24347652,667.93,666.84,0.29992202]
[1746940154948,0.24347652,667.92,666.84,0.29992202]
[1746940155753,0.24347652,667.91,666.84,0.29992202]
[1746940156150,0.56011579,668.01,666.84,0.29992202]
[1746940156456,0.24347558,668.0,666.84,0.29992202]
[1746940156756,0.24347558,667.99,666.84,0.29992202]
[1746940157152,0.24347558,667.98,666.84,0.29992202]
[1746940157456,0.24347558,667.97,666.84,0.29992202]
[1746940157857,0.24347558,667.96,666.84,0.29992202]
[1746940158457,0.24347558,667.95,666.84,0.29992202]
[1746940158756,0.24347558,667.94,666.84,0.29992202]
[1746940159150,0.24347558,667.93,666.84,0.29992202]
[1746940159558,0.24347558,667.92,666.84,0.29992202]
[1746940159759,0.29939671,668.01,666.84,0.29992202]
[1746940160059,0.24347614,668.0,666.84,0.29992202]
[1746940160460,0.24347614,667.99,666.84,0.29992202]
[1746940160760,0.24347614,667.98,666.84,0.29992202]
[1746940161155,0.24347614,667.97,666.84,0.29992202]
[1746940161459,0.24347614,667.96,666.84,0.29992202]
[1746940161760,0.24347614,667.95,666.84,0.29992202]
[1746940162261,0.24347614,667.94,666.84,0.29992202]
[1746940162561,0.24347614,667.93,666.84,0.29992202]
[1746940162960,0.24347614,667.92,666.84,0.29992202]
[1746940163362,0.24347614,668.0,666.84,0.29992202]
[1746940163762,0.24347614,667.99,666.84,0.29992202]
[1746940164261,0.24347614,667.98,666.84,0.29992202]
[1746940164664,0.24347614,667.97,666.84,0.29992202]
[1746940164863,0.24347614,667.97,666.85,0.357]
[1746940165158,0.24347614,668.0,666.86,0.29991302]
[1746940165463,0.24347614,667.96,666.86,0.29991302]
[1746940165762,0.24347614,667.99,666.86,0.29991302]
[1746940166062,0.24347614,667.98,666.86,0.29991302]
[1746940166462,0.24347614,668.0,666.86,0.29991302]
[1746940172168,0.24347614,668.0,666.87,1.16062652]
[1746940172465,0.24347614,668.0,666.88,0.29990403]
[1746940172667,0.24347614,668.0,666.89,1.16062652]
[1746940172866,0.24347614,668.0,666.9,0.29989503]
[1746940173768,0.24347614,668.0,666.91,1.16096599]
[1746940174167,0.24347614,668.0,666.92,0.29988604]
[1746940178673,0.24347614,668.0,666.93,1.1617062]
[1746940178973,0.24347614,668.0,666.94,1.1617062]
[1746940179467,0.24347614,668.0,666.95,1.1617062]
[1746940179973,0.24347614,668.0,666.92,0.29988604]
[1746940180373,0.24347614,668.0,666.93,1.16189829]
[1746940180573,0.24347614,668.0,666.93,1.46177983]
[1746940180872,0.24347614,668.0,666.94,1.16189829]
[1746940181374,0.24347614,668.0,666.95,1.16189829]
[1746940181773,0.24347614,668.0,666.96,1.16189829]
[1746940182074,0.24347614,668.0,666.93,0.29988154]
[1746940182574,0.24347614,668.0,666.94,1.16229865]
[1746940182975,0.24347614,668.0,666.95,1.16229865]
[1746940183378,0.24347614,668.0,666.96,1.16229865]
[1746940183876,0.24347614,668.0,666.97,1.16229865]
[1746940184277,0.24347614,668.0,666.98,1.66229865]
[1746940184678,0.24347614,668.0,666.98,0.5]
[1746940185980,0.24347614,668.0,666.99,1.16238175]
[1746940186683,0.24347614,668.0,667.0,1.16238175]
[1746940187181,0.24347614,668.0,666.98,0.5]
[1746940187783,0.24347614,668.0,666.99,1.16232752]
[1746940188077,0.24347614,668.0,667.0,1.16232752]
[1746940188482,0.24347614,668.0,667.01,1.16232752]
[1746940188977,0.24347614,668.0,666.98,0.5]
[1746940189483,0.24347614,668.0,666.99,1.16233589]
[1746940189882,0.24347614,668.0,667.0,1.16233589]
[1746940190286,0.24347614,668.0,667.01,1.16233589]
[1746940190788,0.24347614,668.0,666.98,0.5]
[1746940191687,0.24347614,668.0,666.99,1.16266868]
[1746940191888,0.24347614,668.0,667.0,1.16266868]
[1746940192485,0.24347614,668.0,667.01,1.16266868]
[1746940192887,0.24347614,668.0,667.02,1.16266868]
[1746940193087,0.29939671,668.01,667.02,1.16266868]
[1746940193289,0.29939671,668.01,666.98,0.76068002]
[1746940193490,0.24345423,668.0,666.98,0.76068002]
[1746940193688,0.24345423,668.0,666.99,1.16300653]
[1746940194291,0.24345423,668.0,667.0,1.16300653]
[1746940194893,0.24345423,668.0,667.01,1.16300653]
[1746940195494,0.24345423,668.0,667.02,1.16300653]
[1746940195889,0.24345423,668.0,666.99,0.26067904]
[1746940196592,0.24345423,668.0,667.0,1.16371583]
[1746940196794,0.24345423,668.0,667.01,1.16371583]
[1746940197093,0.24345423,668.0,667.02,1.16371583]
[1746940197392,0.24345423,668.0,666.99,0.26067904]
[1746940197793,0.24345423,668.0,667.0,1.16400578]
[1746940198188,0.24345423,668.0,667.01,1.16400578]
[1746940198792,0.24345423,668.0,667.02,1.16400578]
[1746940199093,0.24345423,668.0,667.03,1.16400578]
[1746940199493,0.24345423,668.0,667.04,1.16400578]
[1746940199994,0.24345423,668.0,666.99,0.26068002]
[1746940200295,0.24345423,668.0,667.0,1.16488285]
[1746940200789,0.24345423,668.0,667.01,1.16488285]
[1746940201291,0.24345423,668.0,667.02,1.16488285]
[1746940201692,0.24345423,668.0,667.03,1.16488285]
[1746940202094,0.24345423,668.0,667.04,1.16488285]
[1746940202692,0.24345423,668.0,667.05,1.16488285]
[1746940202890,0.29939671,668.01,667.05,1.16488285]
[1746940203195,1.94388738,668.2,667.06,1.16488285]
[1746940203494,1.94388738,668.2,667.07,1.16488285]
[1746940203697,0.24337375,668.19,667.08,0.29981411]
[1746940204098,0.24337375,668.33,667.09,1.16488285]
[1746940204297,0.24337375,668.33,667.1,1.46468797]
[1746940204498,0.26052779,668.32,667.11,0.29980063]
[1746940204698,0.24337375,668.31,667.11,0.29980063]
[1746940204999,0.24337375,668.31,667.12,1.16488285]
[1746940205198,0.24337375,668.31,667.13,1.16488285]
[1746940205599,0.24337375,668.31,667.14,0.29978715]
[1746940205792,0.24337375,668.31,667.14,1.46467]
[1746940206397,0.26052779,668.32,667.15,1.16488285]
[1746940206697,0.26052779,668.32,667.16,0.29977816]
[1746940206900,0.24337072,668.31,667.17,1.16488285]
[1746940207201,0.24337072,668.31,667.18,0.29976917]
[1746940207599,0.26056681,668.36,667.19,1.16488285]
[1746940208102,0.24337072,668.35,667.19,1.16488285]
[1746940208399,0.24337072,668.35,667.2,1.16488285]
[1746940208701,0.24337072,668.35,667.21,1.16488285]
[1746940209102,0.24337072,668.35,667.18,0.29976917]
[1746940209103,0.24337072,668.35,667.22,1.46463405]
[1746940209302,0.24337072,668.35,667.23,0.29974671]
[1746940209502,0.24337072,668.35,667.23,1.46462956]
[1746940209805,0.24337072,668.35,667.24,1.16488285]
[1746940210004,0.24337072,668.35,667.25,0.29973772]
[1746940210506,0.24337072,668.35,667.26,0.395]
[1746940211202,0.24337072,668.36,667.26,0.395]
[1746940214408,0.24337072,668.36,667.26,0.69473323]
[1746940214608,0.24337072,668.36,667.27,0.29972874]
[1746940216411,0.26047807,668.43,667.27,0.29972874]
[1746940216710,0.24337072,668.42,667.27,0.29972874]
[1746940223019,0.24337072,669.05,667.27,0.29972874]
[1746940223217,0.29894025,669.03,667.27,0.29972874]
[1746940223918,0.24337072,669.02,667.27,0.29972874]
[1746940224313,0.29895366,669.0,667.27,0.29972874]
[1746940224718,0.24337072,668.99,667.27,0.29972874]
[1746940225013,0.29896706,668.97,667.27,0.29972874]
[1746940225213,0.29896706,668.97,667.28,1.15716084]
[1746940225418,0.24329206,668.96,667.29,0.29971976]
[1746940225620,0.298976,668.95,667.29,0.29971976]
[1746940225816,0.54226806,668.95,667.29,0.29971976]
[1746940226221,0.24329206,668.94,667.29,0.29971976]
[1746940226521,0.29898494,668.93,667.29,0.29971976]
[1746940226821,0.24329206,668.92,667.29,0.29971976]
[1746940227217,0.24329206,668.91,667.29,0.29971976]
[1746940227521,0.24329206,668.9,667.29,0.29971976]
[1746940227922,0.24329206,668.89,667.29,0.29971976]
[1746940228124,0.54229488,668.89,667.29,0.29971976]
[1746940228517,0.5037789,668.88,667.29,0.29971976]
[1746940228723,0.54230382,668.87,667.29,0.29971976]
[1746940228918,0.29901623,668.86,667.29,0.29971976]
[1746940229125,0.54230829,668.86,667.29,0.29971976]
[1746940229421,0.24329206,668.85,667.29,0.29971976]
[1746940229620,0.29902517,668.84,667.29,0.29971976]
[1746940230127,0.54231723,668.84,667.29,0.29971976]
[1746940230628,0.24329206,668.83,667.29,0.29971976]
[1746940230929,0.54232617,668.82,667.29,0.29971976]
[1746940231427,0.24329206,668.81,667.29,0.29971976]
[1746940231624,0.29904306,668.8,667.29,0.29971976]
[1746940231823,0.54233512,668.8,667.29,0.29971976]
[1746940232227,0.24329206,668.79,667.29,0.29971976]
[1746940232527,0.24329206,668.78,667.29,0.29971976]
[1746940233428,0.24329206,668.77,667.29,0.29971976]
[1746940233723,0.24329206,668.76,667.29,0.29971976]
[1746940234230,0.24329206,668.75,667.29,0.29971976]
[1746940234525,0.50378963,668.75,667.29,0.29971976]
[1746940234729,0.24329206,668.74,667.3,0.328]
[1746940234930,0.24329206,668.74,667.31,0.29971077]
[1746940236330,0.29907436,668.73,667.31,0.29971077]
[1746940236724,0.24329206,668.72,667.31,0.29971077]
[1746940236930,0.2990833,668.71,667.31,0.29971077]
[1746940237424,0.50381108,668.7,667.31,0.29971077]
[1746940237729,0.24329206,668.69,667.31,0.29971077]
[1746940238830,0.29909672,668.68,667.31,0.29971077]
[1746940239429,0.24329206,668.67,667.31,0.29971077]
[1746940239631,0.29910567,668.66,667.31,0.29971077]
[1746940240029,0.24329206,668.65,667.31,0.29971077]
[1746940240230,0.29911462,668.64,667.31,0.29971077]
[1746940240730,0.24329206,668.63,667.31,0.29971077]
[1746940241232,0.29912356,668.62,667.31,0.29971077]
[1746940241532,0.24329206,668.61,667.31,0.29971077]
[1746940242330,0.29912356,668.62,667.31,0.29971077]
[1746940242730,0.24335319,668.61,667.31,0.29971077]